Cogmind - Beta 14 @@@ ROGUE MODE // 2024.11.22 @ 23:08:10 Player: human Result: Destroyed by G-47 Trooper with Particle Gun Performance ------------- Evolutions (2) 1000 Regions Visited (5) 1000 Robots Destroyed (26) 130 Value Destroyed (924) 924 Prototype IDs (4) 80 Alien Tech Used (0) 0 Bonus (300) 300 TOTAL SCORE: 3434 Bonus ------- Aligned with FarCom 300 Cogmind --------- Core Integrity 0/550 Matter 240/300 Energy 100/100 System Corruption 0% Temperature Cool (9) Movement Rolling (90) Location -8/Materials Parts ------- > --- POWER (1) -------- (None) > --- PROPULSION (2) --- Armored Wheel Armored Wheel > --- UTILITY (5) ------ Targeting Computer Targeting Computer Melee Analysis Suite Melee Analysis Suite Core Analyzer > --- WEAPON (3) ------- Ion Cannon High-powered Shotgun > --- INVENTORY (5) ---- Armored Wheel Melee Analysis Suite Beam Rifle Longsword +1 Peak State ------------ > --- POWER ------------ Improved Deuterium Engine > --- PROPULSION ------- Aluminum Leg Carbon-fiber Leg > --- UTILITY ---------- Targeting Computer Targeting Computer Targeting Computer Melee Analysis Suite Core Analyzer > --- WEAPON ----------- Pulse Rifle Heavy Rocket Launcher Longsword +1 > --- INVENTORY -------- High-powered Tractor Beam Ion Cannon High-powered Shotgun Gauss Rifle Gauss Rifle [Rating: 34] Favorites ----------- Power Ion Engine Engine Ion Engine Power Core Nuclear Core Propulsion Aluminum Leg Leg Aluminum Leg Wheel Wheel Flight Unit Flight Unit Utility Tractor Beam Device Tractor Beam Storage Small Storage Unit Processor Targeting Computer Protection Core Shielding Weapon Medium Laser Energy Gun Medium Laser Energy Cannon Ion Cannon Ballistic Gun Light Assault Rifle Launcher Grenade Launcher Slashing Weapon Longsword +1 Piercing Weapon Spear Build | -11 -10 -10 -10 -9 -8 ------- Run | Yrd Mat Min Exi Min Mat Slots Evolved 4 | . . . . . 4 Power . | . . . . . . Propulsion . | . . . . . . Utility 3 | . . . . . 3 Weapon 1 | . . . . . 1 Parts Attached 53 | 6 6 . 3 . 38 Power 5 | 1 1 . . . 3 Engine 4 | 1 1 . . . 2 Core 1 | . . . . . 1 Reactor . | . . . . . . Propulsion 12 | 2 1 . . . 9 Treads . | . . . . . . Leg 4 | . 1 . . . 3 Wheel 5 | 2 . . . . 3 Hover . | . . . . . . Flight 3 | . . . . . 3 Utility 12 | 1 2 . 1 . 8 Device 2 | . 2 . . . . Storage 2 | 1 . . 1 . . Processor 7 | . . . . . 7 Hackware . | . . . . . . Protection 1 | . . . . . 1 Artifact . | . . . . . . Weapon 24 | 2 2 . 2 . 18 Energy Gun 4 | 1 . . 1 . 2 Energy Cannon 1 | . . . . . 1 Ballistic Gun 6 | 1 1 . . . 4 Ballistic Cannon . | . . . . . . Launcher 5 | . 1 . . . 4 Special Weapon . | . . . . . . Impact Weapon . | . . . . . . Slashing Weapon 7 | . . . 1 . 6 Piercing Weapon 1 | . . . . . 1 Special Melee Weapon . | . . . . . . Unidentified Prototypes 2 | . . . 1 . 1 Parts Lost 20 | . 3 . . . 17 Power 4 | . 1 . . . 3 Propulsion 8 | . 2 . . . 6 Utility 4 | . . . . . 4 Weapon 4 | . . . . . 4 Highest Loss Streak 6 | . 2 . . . 6 To Critical Strikes . | . . . . . . Average Slot Usage (%) 81 | . 86 85 85 85 72 Engine 12 | . 14 14 14 14 7 Leg 11 | . 6 14 14 14 8 Wheel 2 | . 13 . . . 1 Device 10 | . 10 14 14 14 2 Storage 11 | . 14 14 14 14 4 Processor 7 | . . . . . 23 Energy Gun 11 | . 14 14 14 14 6 Ballistic Gun 10 | . 11 14 14 14 4 Launcher 2 | . 3 . . . 5 Peak Build Rating 34 | 6 7 6 13 8 34 Average Rating 10 | 3 6 6 6 7 21 On Entrance 5 | . 6 6 6 7 8 Naked Turns . | . . . . . . Heaviest Build 34 | 11 15 14 19 19 34 Greatest Support 33 | 20 20 10 10 10 33 Greatest Overweight (x) 6 | . 3 1 1 1 6 Average Overweight (x) . | . . 1 1 1 . Largest Inventory Capacity 10 | 8 8 8 10 10 10 Average Capacity 8 | 5 8 8 8 10 7 Most Carried 10 | 5 8 7 10 10 10 Average Carried 7 | 1 5 7 7 9 7 Final Capacity 10 | 8 8 8 10 10 5 Final Carried 10 | 1 7 7 10 10 4 Class Distribution -------------------- 80% | Mutant 12% | Scavenger-Gunner 6% | Scavenger-Mutant Dominant Class ---------------- Mutant | -10/Materials Mutant | -10/Mines Mutant | -10/Exiles Mutant | -9/Mines Scavenger-Gunner | -8/Materials Resources | -11 -10 -10 -10 -9 -8 ----------- Run | Yrd Mat Min Exi Min Mat Matter Collected 886 | 241 85 . 120 . 440 Remotely 144 | . 85 . . . 59 Salvage Created 893 | . 189 . . . 704 Parts 51 | . 14 . . . 37 Haulers Intercepted 2 | . 1 . . . 1 Recyclers Shooed . | . . . . . . Parts Field Recycled . | . . . . . . Retrieved Matter . | . . . . . . Parts Self-Destructed . | . . . . . . Prevented . | . . . . . . Kills | -11 -10 -10 -10 -9 -8 ------- Run | Yrd Mat Min Exi Min Mat Combat Hostiles Destroyed 19 | . 4 . . . 15 Melee 8 | . . . . . 8 Guns 4 | . 3 . . . 1 Cannons 1 | . . . . . 1 AOE 5 | . . . . . 5 Classes Destroyed 9 | . 4 . . . 5 Builder 1 | . . . . . 1 Hauler 2 | . 1 . . . 1 Recycler 1 | . . . . . 1 Watcher 3 | . 1 . . . 2 Swarmer 4 | . 1 . . . 3 Grunt 8 | . 3 . . . 5 Sentry 1 | . . . . . 1 Specialist 4 | . . . . . 4 Hunter 2 | . . . . . 2 Best Kill Streak 8 | . 3 . . . 8 Combat Bots Only 5 | . 2 . . . 5 Max Kills in Single Turn 2 | . 2 . . . 2 Gunslinging . | . . . . . . Exploded 1 | . . . . . 1 Melee 1 | . . . . . 1 Uniques/NPCs Destroyed . | . . . . . . Combat | -11 -10 -10 -10 -9 -8 -------- Run | Yrd Mat Min Exi Min Mat Hostile Shots Fired 204 | . 25 . . . 179 Missed 67 | . 6 . . . 61 Damage Taken 2414 | . 312 . . . 2102 Core 682 | . 122 . . . 560 Absorbed by Shields . | . . . . . . Redirected to Shielding 50 | . . . . . 50 Core Remaining (%) 75 | 100 . . . 51 . Volleys Fired 32 | . 12 . . . 20 Largest 3 | . 2 . . . 3 Hottest 130 | . 70 . . . 130 Shots Fired 56 | . 24 . . . 32 Gun 41 | . 24 . . . 17 Cannon 2 | . . . . . 2 Launcher 13 | . . . . . 13 Special . | . . . . . . Kinetic 20 | . 12 . . . 8 Thermal 19 | . 12 . . . 7 Explosive 13 | . . . . . 13 Electromagnetic 4 | . . . . . 4 Robot Hit Streak 9 | . 9 . . . 7 Robot Miss Streak 3 | . 3 . . . 2 Penetration Max 1 | . . . . . 1 Secondary Targets . | . . . . . . Shots Hit Robots 55 | . 16 . . . 39 Core Hits 38 | . 9 . . . 29 Critical Kills . | . . . . . . Critical Parts Destroyed . | . . . . . . Critical Strikes 4 | . 2 . . . 2 Burn 2 | . 2 . . . . Sever 1 | . . . . . 1 Impale 1 | . . . . . 1 Melee Attacks 25 | . . . . . 25 Impact . | . . . . . . Slashing 17 | . . . . . 17 Piercing 8 | . . . . . 8 Sneak Attacks 1 | . . . . . 1 Combat Hostiles . | . . . . . . Follow-up Attacks . | . . . . . . Damage Inflicted 2118 | . 332 . . . 1786 Guns 367 | . 166 . . . 201 Cannons 46 | . . . . . 46 Explosions 835 | . 166 . . . 669 Melee 870 | . . . . . 870 Ramming . | . . . . . . Kinetic 161 | . 78 . . . 83 Thermal 217 | . 88 . . . 129 Explosive 835 | . 166 . . . 669 Electromagnetic 35 | . . . . . 35 Impact . | . . . . . . Slashing 795 | . . . . . 795 Piercing 75 | . . . . . 75 Highest Corruption . | . . . . . . Average Corruption . | . . . . . . Corruption Purged . | . . . . . . Corruption Blocked . | . . . . . . Overload Shots . | . . . . . . Overflow Damage 103 | . 73 . . . 30 Projectiles . | . . . . . . Explosions 73 | . 73 . . . . Melee 30 | . . . . . 30 Knockbacks . | . . . . . . Impact . | . . . . . . Kinetic . | . . . . . . Secondary . | . . . . . . Self-Inflicted Damage 105 | . 75 . . . 30 Shots 4 | . 1 . . . 3 Rammed . | . . . . . . Targets Rammed . | . . . . . . Kicked . | . . . . . . Crushed . | . . . . . . Highest Temperature 151 | . 151 . . . 57 Average Temperature 39 | . 60 . . . 17 Received Heat Transfer 612 | . 144 . . . 468 Siege Activations . | . . . . . . Robots Corrupted . | . . . . . . Combat Hostiles . | . . . . . . Parts Fried . | . . . . . . Impact Corruptions . | . . . . . . Robots Melted 1 | . 1 . . . . Combat Hostiles 1 | . 1 . . . . Parts Melted 4 | . 2 . . . 2 Heat Transferred 666 | . 407 . . . 259 Parts Sabotaged . | . . . . . . Parts Stolen . | . . . . . . Parts Stripped . | . . . . . . Power Chain Reactions . | . . . . . . Alert | -11 -10 -10 -10 -9 -8 ------- Run | Yrd Mat Min Exi Min Mat Peak Influence 433 | . 165 64 . . 433 Initial 64 | . . 64 . . . Average 85 | . 73 64 . . 114 Maximum Alert Level 2 | . . . . . 2 Low Security (%) 88 | 100 100 100 . 100 79 Level 1 10 | . . . . . 17 Level 2 1 | . . . . . 3 Level 3 . | . . . . . . Level 4 . | . . . . . . Level 5 . | . . . . . . High Security . | . . . . . . Max Security . | . . . . . . Squads Dispatched 8 | . . . . 1 7 Investigation 2 | . . . . 1 1 Extermination . | . . . . . . Reinforcement 6 | . . . . . 6 Assault . | . . . . . . Garrison . | . . . . . . Intercept . | . . . . . . Searches Triggered . | . . . . . . Construction Impeded . | . . . . . . Haulers Reinforced . | . . . . . . Active Scanning Responses . | . . . . . . Cargo Convoy Interrupts . | . . . . . . Stealth | -11 -10 -10 -10 -9 -8 --------- Run | Yrd Mat Min Exi Min Mat Distress Signals 4 | . 2 . . . 2 Communications Jammed . | . . . . . . Distress Signals . | . . . . . . Times Spotted 43 | . 9 . . . 34 Peak Tracking Total 10 | . 3 . . . 10 Tactical Retreats 6 | . . . . . 6 Traps | -11 -10 -10 -10 -9 -8 ------- Run | Yrd Mat Min Exi Min Mat Traps Triggered . | . . . . . . Indirectly . | . . . . . . Trap Hack Attempts . | . . . . . . Triggered . | . . . . . . Disarmed . | . . . . . . Reprogrammed . | . . . . . . Reused . | . . . . . . Traps Extracted . | . . . . . . Installed . | . . . . . . Triggered . | . . . . . . Machines | -11 -10 -10 -10 -9 -8 ---------- Run | Yrd Mat Min Exi Min Mat Machines Disabled 6 | . 5 . . . 1 Max in Single Turn 4 | . 4 . . . 1 Machines Repaired . | . . . . . . Machines Dismantled . | . . . . . . Machines Sabotaged . | . . . . . . Overloaded Fab Kills . | . . . . . . Hacking | -11 -10 -10 -10 -9 -8 --------- Run | Yrd Mat Min Exi Min Mat Machines Accessed 7 | . 2 . . 1 4 Terminals 4 | . 1 . . . 3 Fabricators . | . . . . . . Repair Stations . | . . . . . . Recycling Units 1 | . 1 . . . . Scanalyzers 1 | . . . . . 1 Garrison Access . | . . . . . . Total Hacks 25 | . 5 . . 1 19 Successful 13 | . 3 . . 1 9 Failed 12 | . 2 . . . 10 Catastrophic 1 | . . . . . 1 Database Lockouts . | . . . . . . Manual 13 | . . . 2 . 11 Terminals 15 | . 4 . . . 11 Fabricators . | . . . . . . Repair Stations . | . . . . . . Recycling Units 1 | . 1 . . . . Scanalyzers 8 | . . . . . 8 Garrison Access . | . . . . . . Terminal Hacks 3 | . 2 . . 1 . Prototype ID Bank 1 | . 1 . . . . Open Door 1 | . . . . 1 . Emergency Access Points 1 | . 1 . . . . Fabricator Hacks . | . . . . . . Repair Station Hacks . | . . . . . . Recycling Unit Hacks 1 | . 1 . . . . Retrieve Components 1 | . 1 . . . . Scanalyzer 7 | . . . . . 7 Insert Component 3 | . . . . . 3 Analyze 4 | . . . . . 4 Garrison Access Hacks . | . . . . . . Unauthorized Hacks 2 | . . . . . 2 Terminals 2 | . . . . . 2 Botnet 2 | . . . . . 2 Fabricators . | . . . . . . Repair Stations . | . . . . . . Recycling Units . | . . . . . . Scanalyzers . | . . . . . . Garrison Access . | . . . . . . Data Cores Recovered . | . . . . . . Used . | . . . . . . Hacking Detections 4 | . . . . . 4 Full Trace Events 1 | . . . . . 1 Feedback Events . | . . . . . . Feedback Blocked . | . . . . . . Robot Schematics Acquired . | . . . . . . Robots Built . | . . . . . . Authchips . | . . . . . . Time . | . . . . . . Total Robot Build Rating . | . . . . . . Part Schematics Acquired 3 | . . . . . 3 Parts Built . | . . . . . . Authchips . | . . . . . . Time . | . . . . . . Total Part Build Rating . | . . . . . . Parts Repaired . | . . . . . . Time . | . . . . . . Parts Recycled . | . . . . . . Recycled Matter . | . . . . . . Retrieved Matter . | . . . . . . Retrieved Components 2 | . 2 . . . . Parts Scanalyzed 3 | . . . . . 3 Part Schematics Acquired 3 | . . . . . 3 Parts Damaged 1 | . . . . . 1 Bothacking | -11 -10 -10 -10 -9 -8 ------------ Run | Yrd Mat Min Exi Min Mat Used RIF Installer . | . . . . . . Robots Hacked . | . . . . . . Non-combat . | . . . . . . Combat . | . . . . . . Robot Hacks Applied . | . . . . . . Relay Couplers Released . | . . . . . . Fabnet Peak Effective % . | . . . . . . Robots Rewired . | . . . . . . Allies Hacked . | . . . . . . Hacks Repelled . | . . . . . . Allies | -11 -10 -10 -10 -9 -8 -------- Run | Yrd Mat Min Exi Min Mat Total Allies . | . . . . . . Largest Group . | . . . . . . Highest-Rated Group . | . . . . . . Highest-Rated Ally . | . . . . . . Total Orders . | . . . . . . Ally Attacks . | . . . . . . Total Damage . | . . . . . . Kills . | . . . . . . Allies Corrupted . | . . . . . . Allies Melted . | . . . . . . Intel | -11 -10 -10 -10 -9 -8 ------- Run | Yrd Mat Min Exi Min Mat Robot Analysis Total . | . . . . . . Derelict Logs Recovered . | . . . . . . Drone Launches . | . . . . . . Drone Recoveries . | . . . . . . Exploration | -11 -10 -10 -10 -9 -8 ------------- Run | Yrd Mat Min Exi Min Mat Turns Passed 2542 | 61 280 73 1244 133 751 Spaces Moved 1449 | 64 201 39 650 69 426 Core 44 | 23 2 . . . 19 Treads . | . . . . . . Legs 1026 | . 58 39 650 69 210 Wheels 243 | 41 141 . . . 61 Hover . | . . . . . . Flight 136 | . . . . . 136 Fastest Speed 37 | 50 80 190 190 190 37 Average Speed 155 | 69 114 190 190 190 127 Slowest Speed 360 | 80 200 190 190 190 360 Overloaded Moves . | . . . . . . Propulsion Burnouts . | . . . . . . Robots Hopped 4 | . . . . . 4 Cave-ins Triggered 1 | . . . . . 1 Exploration Rate (%) 35 | 4 44 13 91 23 37 Regions Visited 5 Branch Regions 3 Pre-discovered Areas 1 | . . 1 . . . Known Exits Taken . | . . . . . . Unknown Exits Taken 5 | 1 1 1 1 1 . Scrap Searched . | . . . . . . Spaces Dug 4 | . . . . . 4 Terrain Destroyed 108 | . 8 . . . 100 Melee 4 | . . . . . 4 Projectile . | . . . . . . AOE 104 | . 8 . . . 96 Terrain Rammed . | . . . . . . Walls Destroyed . | . . . . . . Machines Disabled . | . . . . . . Actions | -11 -10 -10 -10 -9 -8 --------- Run | Yrd Mat Min Exi Min Mat Total 1649 | 81 228 38 659 72 571 Wait 27 | . 1 . . . 26 Move 1437 | 63 200 38 649 68 419 Hop 3 | . . . . . 3 Pick Up 44 | 9 9 . 5 2 19 Fast Attach 16 | 1 . . . . 15 Attach 26 | 5 3 . . . 18 Detach 5 | . . . . . 5 Swap 11 | . 3 . 3 . 5 Drop 23 | 3 . . 2 2 16 Fire 32 | . 12 . . . 20 Melee 25 | . . . . . 25 Ram . | . . . . . . Kick . | . . . . . . Crush . | . . . . . . Escape Stasis . | . . . . . . Rewire . | . . . . . . Trap . | . . . . . . Miscellaneous . | . . . . . . Route ------- -11/Scrapyard -10/Materials -10/Mines -10/Exiles -9/Mines -8/Materials History --------- Turn | Location | Event 8 | -11/Scrapyard | Discovered new exit (range 16) 62 | -11/Scrapyard | Entered Materials 246 | -10/Materials | Discovered new exit (range 16) 304 | -10/Materials | Build established: Mutant 342 | -10/Materials | Entered Mines 343 | -10/Mines | Learned location of Storage (-9) 407 | -10/Mines | Deemed a non-threat by the Exiles lab entrance 407 | -10/Mines | Discovered new exit (range 5) 415 | -10/Mines | Entered Exiles 467 | -10/Exiles | Met 8R-AWN 495 | -10/Exiles | Met EX-HEX 554 | -10/Exiles | Met EX-BIN 733 | -10/Exiles | Met EX-DEC 779 | -10/Exiles | Visited The Gauntlet 1033 | -10/Exiles | Discovered new exit (range 12) 1320 | -10/Exiles | Aligned with FarCom system 1322 | -10/Exiles | Given EX-Vault access code 1421 | -10/Exiles | Opened EX-Vault 1424 | -10/Exiles | Found Prototype Slashing Weapon 1463 | -10/Exiles | Warned to stay clear of 0b10 Research branches 1473 | -10/Exiles | Identified Longsword +1 1659 | -10/Exiles | Left Exiles lab with Longsword +1 1659 | -10/Exiles | Entered Mines 1667 | -9/Mines | Met a Derelict bent on vengeance 1674 | -9/Mines | Met a Derelict shopkeep closing up shop 1769 | -9/Mines | Discovered new exit (range 15) 1792 | -9/Mines | Entered Materials 1792 | -8/Materials | Evolved 4 slots: Utility x3, Weapon x1 2015 | -8/Materials | Crushed by falling debris 2044 | -8/Materials | Lost 6 parts (1p2n1u2w) 2074 | -8/Materials | Core integrity fell below 50% 2120 | -8/Materials | Lost 3 parts (1p1u1w) 2466 | -8/Materials | Core integrity fell below 20% 2468 | -8/Materials | Lost 3 parts (2n1u) 2543 | -8/Materials | Destroyed by G-47 Trooper with Particle Gun Last Messages --------------- Ready to analyze. >>Scanalyze Scanning: Melee Analysis Suite... Schematic downloaded. 02477_ Slug penetrates Wall. 02477_ Scanalyzer disabled. 02482_ U-05 Engineer builds a Wall. 02491_ T-07 Excavator is excavating. 02501_ Acquired Arm. Wheel. 02504_ Dropped Flight Unit. 02504_ Acquired Arm. Wheel. 02512_ Y-45 Defender destroyed. 02515_ Acquired 46 matter. 02517_ Acquired Beam Rifle. 02521_ Acquired Arm. Wheel. 02532_ Penetrated by Slug. 02535_ T-07 Excavator is excavating. 02535_ Hvy. Rocket Launcher destroyed. 02535_ Lgt. Ion Engine destroyed. 02541_ Penetrated by Slug. Map ----- +----------------------------------------------------+ | | | | | | | | | | | | | | | | | | | | | | | | | | | | | | | ?????????????????????????????????????????????????? | | ???????????????????########??????????????????????? | | ???????????????????# #?????????????Y????????? | | ???????????????????# #??????????????????????? | | ???????????????????# """#??????????????????????? | | ???????????????????# """#?????????????????#????? | | ??###########??????# """#???????????????? #????? | | ??# #???????? ???????????????? #????? | | ??# """ ###########;###########+##### +????? | | ??# """ # g #????? | | ??#=! """ + ga @ #????? | | ??# ! # h g #????? | | ??# ! #### #################g #####???????? | | ?##! #? ??????""" """?# g #???????????? | | ?#! ## #???? """ """?# #???????????? | | ?############## ####???# """ """ # ############? | | ??????????????##???????# # | | ???????????????????????# * + | | ???????????????????????# #g | | ???????????????????????# # #### #####? | | ???????????????????????# ?# #???? #????? | | ???????????????????????#########?#g #????? #????? | | ###????????????????############### #??????#????? | | #????????????????# #???????????? | | " #????????????????#%* |!! #???????????? | | " #????????????????#[%==! #???????????? | | " #?????????????#####+###### ###########?????????? | | #?????????????# ![![* ## # ! #?????????? | | #?????????????# """"""" ## + ! #?????????? | | ################# """"""" ## # ! #?????????? | | +%""""""" ##^# #?? ??????? | | ################# """"""" ## ###########?? #????? | | #???????????????# """"""" ## ###########?? ##???? | | #???????????????# ## # #?? #???? | | #???????????????# [ ## # "S[ #? #???? | +----------------------------------------------------+ Best States ------------- Heat Dissipation 31 Energy Generation 16 Energy Capacity 290 Matter Stores 300 Matter Capacity 300 Sight Range 16 Terrain Scan Density 10 ECM Strength 1 Core Shielding 20 Evasion (%) 62 Targeting Accuracy 15 Melee Accuracy 10 Core Analysis 6 Item Schematics ----------------- Hvy. Rocket Launcher | -8/Materials | Scanalyzed Gauss Rifle | -8/Materials | Scanalyzed Melee Analysis Suite | -8/Materials | Scanalyzed Robot Schematics ------------------ None Fabricated ------------ Nothing Alien Tech Used ----------------- None Achievements -------------- None Challenges ------------ None Game ------ Seed MultinovaBlastScrapsphere Manual? 0 Play Time 00:44:59 Cumulative 42.4 hours Start 2024.11.22 @ 22:17:25 End 2024.11.22 @ 23:08:10 Sessions 1 Manual Loads 0 Difficulty Rogue Special Mode None Game No. 29 Rogue 29 Adventurer 0 Explorer 0 Win Type - Total 0 Types 0/0/0/0/0/0/0/0/0 Lore% 9 Gallery% 29 Achievement% 25 Wizard Run 0 Options --------- Layout 1 ASCII 0 Keyboard 0 Movement Mouse Keybinds 0 Fullscreen 1 Font 24/Smallcaps Map View 50x35 Zoom Use 0% Tactical HUD 1 Map Filters NONE Filters NONE Steam 1 RUN: 68e1e4e1-63a9-414a-b9a6-f54bd4d83923